fUSD/lending_fUSD_20250226
["ID","MTS","AMOUNT","RATE_DAILY","PERIOD"]
[354574215,1740579068256,-500.0,0.00039722,14]
[354574216,1740579068265,-1365.36,0.00039722,14]
[354574217,1740579068274,-500.0,0.00039722,14]
[354574218,1740579068284,-1335.32,0.00039722,14]
[354574219,1740579068293,-517.55,0.00039722,14]
[354574220,1740579068303,-1311.4,0.00039722,14]
[354574221,1740579068312,-500.0,0.00039722,14]
[354574222,1740579068327,-500.0,0.00039722,14]
[354574223,1740579068336,-1772.27,0.00039722,14]
[354574224,1740579068345,-712.34,0.00039722,14]
[354574225,1740579068355,-853.47,0.00039722,14]
[354574226,1740579068364,-553.6,0.00039722,14]
[354574227,1740579068374,-2827.92,0.00039722,14]
[354574228,1740579068384,-516.94,0.00039722,14]
[354574229,1740579068393,-664.49,0.00039722,14]
[354574230,1740579068403,-2665.37,0.00039722,14]
[354574231,1740579068413,-979.89,0.00039722,14]
[354574232,1740579068422,-500.0,0.00039722,14]
[354574233,1740579068432,-2926.58,0.00039722,14]
[354574234,1740579068442,-584.65,0.00039722,14]
[354574235,1740579068452,-2222.36,0.00039722,14]
[354574236,1740579068462,-6058.44,0.00039722,14]
[354574237,1740579068472,-500.0,0.00039722,14]
[354574238,1740579068481,-623.07,0.00039722,14]
[354574239,1740579068491,-712.37,0.00039722,14]
[354574240,1740579068501,-1063.89,0.00039722,14]
[354574241,1740579068510,-632.18,0.00039722,14]
[354574242,1740579068520,-1089.38,0.00039722,14]
[354574243,1740579068530,-1240.0,0.00039722,14]
[354574244,1740579068540,-1516.22,0.00039722,14]
[354574245,1740579068549,-500.0,0.00039722,14]
[354574246,1740579068559,-588.12,0.00039722,14]
[354574247,1740579068572,-995.99,0.00039722,14]
[354574248,1740579068582,-2222.97,0.00039722,14]
[354574249,1740579068591,-539.43,0.00039722,14]
[354574250,1740579068600,-500.0,0.00039722,14]
[354574251,1740579068610,-1250.99,0.00039722,14]
[354574252,1740579068619,-2764.98,0.00039722,14]
[354574253,1740579068628,-6267.3,0.00039722,14]
[354574254,1740579068638,-500.0,0.00039722,14]
[354574255,1740579068648,-3072.05,0.00039722,14]
[354574256,1740579068658,-510.48,0.00039722,14]
[354574257,1740579068668,-500.0,0.00039722,14]
[354574258,1740579068677,-1505.44,0.00039722,14]
[354574259,1740579068687,-1623.58,0.00039722,14]
[354574260,1740579068697,-4044.93,0.00039722,14]
[354574261,1740579068707,-937.49,0.00039722,14]
[354574262,1740579068717,-7622.02,0.00039722,14]
[354574263,1740579068726,-2756.53,0.00039722,14]
[354574264,1740579068736,-729.46,0.00039722,7]
[354574265,1740579068745,-559.12,0.00039722,14]
[354574266,1740579068755,-2829.82,0.00039722,14]
[354574267,1740579068764,-500.0,0.00039722,14]
[354574268,1740579068774,-575.61,0.00039722,14]
[354574269,1740579068783,-500.0,0.00039722,14]
[354574270,1740579068794,-1282.22,0.00039722,14]
[354574271,1740579068804,-555.19,0.00039722,14]
[354574272,1740579068813,-500.0,0.00039722,14]
[354574273,1740579068827,-1865.33,0.00039722,14]
[354574274,1740579068836,-2910.21,0.00039722,14]
[354574275,1740579068845,-8423.92,0.00039722,14]
[354574276,1740579068855,-1189.83,0.00039722,14]
[354574277,1740579068865,-500.0,0.00039722,14]
[354574278,1740579068874,-500.0,0.00039722,14]
[354574279,1740579068883,-612.84708732,0.00039722,14]
[354574280,1740579068893,-500.0,0.00039723,14]
[354574281,1740579068902,-500.0,0.00039723,14]
[354574282,1740579068912,-500.0,0.00039723,14]
[354574283,1740579068921,-677.02,0.00039723,14]
[354574284,1740579068931,-500.0,0.00039723,14]
[354574285,1740579068941,-802.45,0.00039723,14]
[354574286,1740579068950,-565.95,0.00039723,14]
[354574287,1740579068959,-512.53,0.00039723,14]
[354574288,1740579068968,-500.0,0.00039723,14]
[354574289,1740579068978,-500.0,0.00039723,14]
[354574290,1740579068987,-1168.82,0.00039723,14]
[354574291,1740579068997,-978.91,0.00039723,14]
[354574292,1740579069006,-500.0,0.00039723,14]
[354574293,1740579069015,-500.0,0.00039723,14]
[354574294,1740579069025,-500.0,0.00039723,14]
[354574295,1740579069034,-825.29,0.00039723,14]
[354574296,1740579069043,-500.0,0.00039723,14]
[354574297,1740579069052,-583.74,0.00039723,14]
[354574298,1740579069062,-500.0,0.00039723,14]
[354574299,1740579069072,-612.46,0.00039723,14]
[354574300,1740579069081,-572.91,0.00039723,14]
[354574301,1740579069091,-500.0,0.00039723,14]
[354574302,1740579069100,-755.97,0.00039723,14]
[354574303,1740579069109,-500.0,0.00039723,14]
[354574304,1740579069119,-538.04,0.00039723,14]
[354574305,1740579069128,-500.0,0.00039723,14]
[354574306,1740579069138,-753.71,0.00039723,14]
[354574307,1740579069151,-651.66,0.00039723,14]
[354574308,1740579069161,-1026.57,0.00039723,14]
[354574309,1740579069171,-1020.87,0.00039723,14]
[354574310,1740579069180,-500.0,0.00039723,14]
[354574311,1740579069190,-500.0,0.00039723,14]
[354574312,1740579069201,-1007.43,0.00039723,14]
[354574313,1740579069210,-1095.01,0.00039723,14]
[354574314,1740579069221,-910.66,0.00039723,14]
[354574315,1740579069231,-500.0,0.00039723,14]
[354574316,1740579069244,-500.0,0.00039723,14]
[354574317,1740579069253,-564.6,0.00039723,14]
[354574318,1740579069263,-768.03,0.00039723,14]
[354574319,1740579069273,-992.83,0.00039723,14]
[354574320,1740579069283,-993.3,0.00039723,14]
[354574321,1740579069293,-500.0,0.00039723,14]
[354574322,1740579069302,-690.81,0.00039723,14]
[354574323,1740579069311,-500.0,0.00039723,14]
[354574324,1740579069324,-794.98,0.00039723,14]
[354574325,1740579069334,-625.49,0.00039723,14]
[354574326,1740579069344,-500.0,0.00039723,14]
[354574327,1740579069354,-500.89,0.00039723,14]
[354574328,1740579069363,-500.0,0.00039723,14]
[354574329,1740579069373,-500.0,0.00039723,14]
[354574330,1740579069382,-591.01,0.00039723,14]
[354574331,1740579069392,-500.0,0.00039723,14]
[354574332,1740579069402,-500.0,0.00039723,14]
[354574333,1740579069414,-1674.03,0.00039723,14]
[354574334,1740579069423,-500.0,0.00039723,14]
[354574335,1740579069433,-500.0,0.00039723,14]
[354574336,1740579069443,-712.51,0.00039723,14]
[354574337,1740579069453,-500.0,0.00039723,14]
[354574338,1740579069462,-990.23,0.00039723,14]
[354574339,1740579069471,-1962.02,0.00039723,14]
[354574340,1740579069481,-500.0,0.00039723,14]
[354574341,1740579069490,-500.0,0.00039723,14]
[354574342,1740579069499,-500.0,0.00039723,14]
[354574343,1740579069508,-628.58,0.00039723,14]
[354574344,1740579069518,-693.39,0.00039723,14]
[354574345,1740579069528,-807.24,0.00039723,14]
[354574346,1740579069537,-500.0,0.00039723,14]
[354574347,1740579069547,-500.0,0.00039723,14]
[354574348,1740579069556,-500.0,0.00039723,14]
[354574349,1740579069565,-500.0,0.00039723,14]
[354574350,1740579069580,-500.0,0.00039723,14]
[354574351,1740579069589,-766.03,0.00039723,14]
[354574352,1740579069599,-452.98269482,0.00039723,14]
[354574353,1740579069609,-413.69947762,0.00039723,14]
[354574354,1740579069619,-500.0,0.00039723,14]
[354574355,1740579069629,-500.0,0.00039723,14]
[354574356,1740579069639,-2132.27,0.00039723,14]
[354574357,1740579069649,-500.0,0.00039723,14]
[354574358,1740579069658,-569.13,0.00039723,14]
[354574359,1740579069668,-765.88,0.00039723,14]
[354574360,1740579069678,-500.0,0.00039723,14]
[354574361,1740579069688,-500.0,0.00039723,14]
[354574362,1740579069697,-642.3,0.00039723,14]
[354574363,1740579069707,-803.74,0.00039723,14]
[354574364,1740579069716,-923.56,0.00039723,14]
[354574365,1740579069725,-1195.67,0.00039723,14]
[354574366,1740579069735,-959.11,0.00039723,14]
[354574367,1740579069744,-500.0,0.00039723,14]
[354574368,1740579069754,-1531.18,0.00039723,14]
[354574369,1740579069763,-971.94,0.00039723,14]
[354574370,1740579069772,-1072.53,0.00039723,14]
[354574371,1740579069782,-2069.97,0.00039723,14]
[354574372,1740579069791,-500.0,0.00039723,14]
[354574373,1740579069801,-516.84,0.00039723,14]
[354574374,1740579069811,-661.53,0.00039723,14]
[354574375,1740579069825,-1839.88,0.00039723,14]
[354574376,1740579069834,-1359.96,0.00039723,14]
[354574377,1740579069844,-1985.62,0.00039723,14]
[354574378,1740579069853,-649.95,0.00039723,14]
[354574379,1740579069863,-1364.43,0.00039723,14]
[354574380,1740579069873,-1535.28,0.00039723,14]
[354574381,1740579069882,-1331.69,0.00039723,14]
[354574382,1740579069891,-938.39,0.00039723,14]
[354574383,1740579069901,-559.38,0.00039723,14]
[354574384,1740579069910,-434.36374587,0.00039723,14]
[354574385,1740579069920,-1624.0,0.00039723,14]
[354574386,1740579069929,-1284.75,0.00039723,14]
[354574387,1740579069939,-1147.1,0.00039723,14]
[354574388,1740579069948,-500.0,0.00039723,14]
[354574389,1740579069958,-500.0,0.00039723,14]
[354574390,1740579069967,-500.0,0.00039723,14]
[354574391,1740579069977,-3448.1,0.00039723,14]
[354574392,1740579069986,-1343.45,0.00039723,14]
[354574393,1740579069995,-995.8,0.00039723,14]
[354574394,1740579070004,-1489.87,0.00039723,14]
[354574395,1740579070014,-500.0,0.00039723,14]
[354574396,1740579070024,-932.67,0.00039723,14]
[354574397,1740579070034,-500.0,0.00039723,14]
[354574398,1740579070044,-729.49,0.00039723,14]
[354574399,1740579070053,-1092.54,0.00039723,14]
[354574400,1740579070063,-1327.39,0.00039723,14]
[354574401,1740579070074,-1101.87,0.00039723,14]
[354574402,1740579070084,-699.61,0.00039723,14]
[354574403,1740579070094,-1570.33,0.00039723,14]
[354574404,1740579070103,-969.11,0.00039723,14]
[354574405,1740579070112,-500.0,0.00039723,14]
[354574406,1740579070122,-843.19,0.00039723,14]
[354574407,1740579070132,-500.0,0.00039723,14]
[354574408,1740579070143,-500.0,0.00039723,14]
[354574409,1740579070152,-1269.57,0.00039723,14]
[354574410,1740579070164,-500.0,0.00039723,14]
[354574411,1740579070173,-988.96,0.00039723,14]
[354574412,1740579070182,-1044.75,0.00039723,14]
[354574413,1740579070191,-518.04,0.00039723,14]
[354574414,1740579070200,-583.83,0.00039723,14]
[354574415,1740579070211,-500.0,0.00039723,14]
[354574416,1740579070222,-963.56,0.00039723,14]
[354574417,1740579070231,-300.0,0.00039723,14]
[354574418,1740579070241,-1823.45,0.00039723,14]
[354574419,1740579070250,-985.02,0.00039723,14]
[354574420,1740579070259,-1313.1,0.00039723,14]
[354574421,1740579070268,-1094.31,0.00039723,14]
[354574422,1740579070279,-500.0,0.00039723,14]
[354574423,1740579070288,-987.41,0.00039723,14]
[354574424,1740579070298,-1261.86,0.00039723,14]
[354574425,1740579070308,-500.0,0.00039723,14]
[354574426,1740579070317,-2623.37,0.00039723,14]
[354574427,1740579070330,-631.48,0.00039723,14]
[354574428,1740579070340,-500.0,0.00039723,14]
[354574429,1740579070350,-1194.79,0.00039723,14]
[354574430,1740579070359,-500.0,0.00039723,14]
[354574431,1740579070369,-1009.46,0.00039723,14]
[354574432,1740579070378,-681.97,0.00039723,14]
[354574433,1740579070388,-500.0,0.00039723,14]
[354574434,1740579070398,-1820.9,0.00039723,14]
[354574435,1740579070408,-1826.89,0.00039723,14]
[354574436,1740579070418,-630.45,0.00039723,14]
[354574437,1740579070429,-500.0,0.00039723,14]
[354574438,1740579070439,-695.83,0.00039723,14]
[354574439,1740579070449,-883.53,0.00039723,14]
[354574440,1740579070458,-500.0,0.00039723,14]
[354574441,1740579070468,-780.6,0.00039723,14]
[354574442,1740579070477,-1217.03,0.00039723,14]
[354574443,1740579070487,-500.0,0.00039723,14]
[354574444,1740579070496,-500.0,0.00039723,14]
[354574445,1740579070506,-1540.48,0.00039723,14]
[354574446,1740579070516,-500.0,0.00039723,14]
[354574447,1740579070526,-1394.53,0.00039723,14]
[354574448,1740579070535,-500.0,0.00039723,14]
[354574449,1740579070544,-1632.46,0.00039723,14]
[354574450,1740579070554,-734.41,0.00039723,14]
[354574451,1740579070564,-500.0,0.00039723,14]
[354574452,1740579070574,-500.0,0.00039723,14]
[354574453,1740579070583,-629.86,0.00039723,14]
[354574454,1740579070593,-500.0,0.00039723,14]
[354574455,1740579070602,-611.23,0.00039723,14]
[354574456,1740579070612,-657.24,0.00039723,14]
[354574457,1740579070621,-967.67,0.00039723,14]
[354574458,1740579070631,-1297.29,0.00039723,14]
[354574459,1740579070640,-2160.04,0.00039723,14]
[354574460,1740579070650,-687.1,0.00039723,14]
[354574461,1740579070660,-1405.07,0.00039723,14]
[354574462,1740579070670,-500.0,0.00039723,14]
[354574463,1740579070684,-1312.8,0.00039723,14]
[354574464,1740579070693,-574.68,0.00039723,14]
[354574465,1740579070702,-1566.69,0.00039723,14]
[354574466,1740579070711,-1850.36,0.00039723,14]
[354574467,1740579070720,-2688.95,0.00039723,14]
[354574468,1740579070729,-500.0,0.00039723,14]
[354574469,1740579070739,-634.52,0.00039723,14]
[354574470,1740579070749,-500.0,0.00039723,14]
[354574471,1740579070758,-2639.65,0.00039723,14]
[354574472,1740579070768,-1346.1,0.00039723,14]
[354574473,1740579070777,-597.82,0.00039723,14]
[354574474,1740579070786,-500.0,0.00039723,14]
[354574475,1740579070795,-783.94,0.00039723,14]
[354574476,1740579070804,-1875.46,0.00039723,14]
[354574477,1740579070813,-500.0,0.00039723,14]
[354574478,1740579070824,-3302.05,0.00039723,14]
[354574479,1740579070834,-538.4384869,0.00039723,14]
[354574480,1740579070843,-1299.24,0.00039723,14]
[354574481,1740579070853,-10982.95,0.00039723,14]
[354574482,1740579070862,-500.0,0.00039723,14]
[354574483,1740579070979,-992.48,0.00039723,14]
[354574484,1740579070990,-1002.34,0.00039723,14]
[354574485,1740579071001,-500.0,0.00039723,14]
[354574486,1740579071010,-500.0,0.00039723,14]
[354574487,1740579071020,-2956.75,0.00039723,14]
[354574488,1740579071029,-1260.8,0.00039723,14]
[354574489,1740579071039,-867.41,0.00039723,14]
[354574490,1740579071048,-947.35,0.00039723,14]
[354574491,1740579071058,-770.05,0.00039723,14]
[354574492,1740579071067,-1081.94,0.00039723,14]
[354574493,1740579071079,-1321.65,0.00039723,14]
[354574494,1740579071088,-185.82911792,0.00039723,14]
[354574495,1740579071097,-2800.68,0.00039723,14]
[354574496,1740579071105,-546.52,0.00039723,14]
[354574497,1740579071114,-534.66,0.00039723,14]
[354574498,1740579071123,-500.0,0.00039723,14]
[354574499,1740579071133,-736.78,0.00039723,14]
[354574500,1740579071143,-500.0,0.00039723,14]
[354574501,1740579071156,-504.24,0.00039723,14]
[354574502,1740579071165,-9015.06,0.00039723,14]
[354574503,1740579071175,-836.99,0.00039723,14]
[354574504,1740579071186,-723.81,0.00039723,14]
[354574505,1740579071197,-500.0,0.00039723,14]
[354574506,1740579071207,-515.9,0.00039724,14]
[354574507,1740579071221,-500.0,0.00039724,14]
[354574508,1740579071231,-1834.5,0.00039724,14]
[354574509,1740579071241,-500.0,0.00039724,14]
[354574510,1740579071251,-944.67,0.00039724,14]
[354574511,1740579071261,-500.0,0.00039724,14]
[354574512,1740579071273,-791.73,0.00039724,14]
[354574513,1740579071282,-820.02,0.00039724,14]
[354574514,1740579071291,-500.0,0.00039724,14]
[354574515,1740579071300,-1056.64,0.00039724,14]
[354574516,1740579071310,-1537.93,0.00039724,14]
[354574517,1740579071320,-1621.59,0.00039724,14]
[354574518,1740579071332,-500.0,0.00039724,14]
[354574519,1740579071342,-1394.71,0.00039724,14]
[354574520,1740579071352,-2100.0,0.00039724,14]
[354574521,1740579071362,-500.0,0.00039724,14]
[354574522,1740579071372,-500.0,0.00039724,14]
[354574523,1740579071382,-500.0,0.00039724,14]
[354574524,1740579071391,-500.0,0.00039724,14]
[354574525,1740579071400,-828.74,0.00039724,14]
[354574526,1740579071410,-955.28,0.00039724,14]
[354574527,1740579071419,-500.0,0.00039724,14]
[354574528,1740579071429,-835.57,0.00039724,14]
[354574529,1740579071439,-855.53,0.00039724,14]
[354574530,1740579071448,-1301.61,0.00039724,14]
[354574531,1740579071458,-989.03,0.00039724,14]
[354574532,1740579071467,-1283.55,0.00039724,14]
[354574533,1740579071477,-2008.44,0.00039724,14]
[354574534,1740579071487,-1982.32,0.00039724,14]
[354574535,1740579071496,-1390.29,0.00039724,14]
[354574536,1740579071506,-1560.11,0.00039724,14]
[354574537,1740579071517,-500.0,0.00039724,14]
[354574538,1740579071528,-2225.85,0.00039724,14]
[354574539,1740579071540,-1144.79,0.00039724,14]
[354574540,1740579071550,-3889.48,0.00039724,14]
[354574541,1740579071560,-1958.29,0.00039724,14]
[354574542,1740579071570,-2543.92,0.00039724,14]
[354574543,1740579071583,-1610.63,0.00039724,14]
[354574544,1740579071593,-1123.89,0.00039724,14]
[354574545,1740579071603,-1055.64,0.00039724,14]
[354574546,1740579071614,-1811.37,0.00039724,14]
[354574547,1740579071624,-525.88,0.00039724,14]
[354574548,1740579071634,-1185.45,0.00039724,14]
[354574549,1740579071643,-3527.89,0.00039724,14]
[354574550,1740579071653,-693.79437407,0.00039724,14]
[354574551,1740579072032,-265.1286,0.00039724,14]
[354574552,1740579072134,-500.0,0.00038626,14]
[354574553,1740579072145,-500.0,0.000389,14]
[354574554,1740579072158,-627.91702593,0.00039724,14]
[354574555,1740579072168,-1273.45,0.00039724,14]
[354574556,1740579072177,-667.39,0.00039724,14]
[354574557,1740579072188,-1601.72,0.00039724,14]
[354574558,1740579072199,-632.18,0.00039724,14]
[354574559,1740579072209,-500.0,0.00039724,14]
[354574560,1740579072219,-633.32,0.00039724,14]
[354574561,1740579072232,-500.0,0.00039724,14]
[354574562,1740579072242,-1548.06,0.00039724,14]
[354574563,1740579072252,-301.90136684,0.00039724,14]
[354574564,1740579072266,-1049.72863316,0.00039724,14]
[354574565,1740579072275,-1613.65,0.00039724,14]
[354574566,1740579072285,-385.57983307,0.00039724,14]
[354574567,1740579072296,-114.42016693,0.00039724,14]
[354574568,1740579072306,-500.0,0.00039725,14]
[354574569,1740579072315,-255.50675971,0.00039725,14]
[354574570,1740579075144,-500.0,0.00039174,14]
[354574571,1740579075157,-500.0,0.00039448,14]
[354574572,1740579075167,-1106.60310953,0.00039567,2]
[354574573,1740579075195,-775.63842559,0.00039567,2]
[354574574,1740579075205,-500.0,0.00039722,14]
[354574575,1740579075215,-244.49324029,0.00039725,14]
[354574576,1740579075225,-574.03,0.00039725,14]
[354574577,1740579075235,-583.56,0.00039725,14]
[354574578,1740579075244,-919.11,0.00039725,14]
[354574579,1740579075255,-500.0,0.00039725,14]
[354574580,1740579075264,-500.0,0.00039725,14]
[354574581,1740579075274,-500.0,0.00039725,14]
[354574582,1740579075283,-500.0,0.00039725,14]
[354574583,1740579075293,-500.0,0.00039725,14]
[354574584,1740579075302,-856.74,0.00039725,14]
[354574585,1740579075312,-708.53,0.00039725,14]
[354574586,1740579075321,-687.98,0.00039725,14]
[354574587,1740579075337,-500.0,0.00039725,14]
[354574588,1740579075352,-500.0,0.00039725,14]
[354574589,1740579075364,-1224.09,0.00039725,14]
[354574590,1740579075374,-500.0,0.00039725,14]
[354574591,1740579075440,-642.92,0.00039725,14]
[354574592,1740579075453,-500.0,0.00039725,14]
[354574593,1740579075463,-500.0,0.00039725,14]
[354574594,1740579075472,-500.0,0.00039725,14]
[354574595,1740579075482,-500.0,0.00039725,14]
[354574596,1740579075492,-1378.47,0.00039725,14]
[354574597,1740579075502,-525.37,0.00039725,14]
[354574598,1740579075514,-667.25,0.00039725,14]
[354574599,1740579075524,-1101.68,0.00039725,14]
[354574600,1740579075533,-1827.21,0.00039725,14]
[354574601,1740579075543,-500.0,0.00039725,14]
[354574602,1740579075554,-500.0,0.00039725,14]
[354574603,1740579075564,-500.0,0.00039725,14]
[354574604,1740579075574,-520.07003665,0.00039725,14]
[354574605,1740579075585,-1293.28,0.00039725,14]
[354574606,1740579075595,-501.66,0.00039725,14]
[354574607,1740579075606,-595.35,0.00039725,14]
[354574608,1740579075615,-1402.84,0.00039725,14]
[354574609,1740579075625,-500.0,0.00039725,14]
[354574610,1740579075634,-1106.24,0.00039725,14]
[354574611,1740579075644,-735.16,0.00039725,14]
[354574612,1740579075654,-1672.09,0.00039725,14]
[354574613,1740579075664,-858.59,0.00039725,14]
[354574614,1740579075673,-1014.94,0.00039725,14]
[354574615,1740579075683,-2000.0,0.00039742,4]
[354574616,1740579075692,-2000.0,0.00039775,4]
[354574617,1740579075702,-150.0,0.0003978,2]
[354574618,1740579075711,-632.18,0.00039799,14]
[354574619,1740579075722,-632.18,0.00039799,14]
[354574620,1740579075731,-19859.22798011,0.000398,7]
[354574621,1740579075743,-3851.88067642,0.000398,7]
[354574622,1740579075754,-10030.45714787,0.000398,7]
[354574623,1740579075766,-7806.74460825,0.000398,7]
[354574624,1740579075777,-3103.3582,0.000398,7]
[354574625,1740579075788,-2599.444995,0.000398,7]
[354574626,1740579075800,-5522.97328133,0.000398,7]
[354574627,1740579075811,-1678.22164924,0.000398,7]
[354574628,1740579076198,-609.79999977,0.000398,7]
[354574629,1740579076210,-562.89999798,0.000398,7]
[354574630,1740579076231,-462.31923285,0.000398,7]
[354574631,1740579076243,-693.4,0.000398,7]
[354574632,1740579076255,-2361.73043536,0.000398,7]
[354574633,1740579076282,-4933.7,0.000398,7]
[354574634,1740579076293,-481.48099999,0.000398,7]
[354574635,1740579076304,-255.89850001,0.000398,7]
[354574636,1740579076315,-39538.03133,0.000398,7]
[354574637,1740579076327,-309.415,0.000398,7]
[354574638,1740579076338,-1023.6849992,0.000398,7]
[354574639,1740579076349,-8669.5,0.000398,7]
[354580261,1740580034591,-150.0,0.00014998,2]
[354580262,1740580034616,-171.15230154,0.00014999,2]
[354580263,1740580034643,-500.0,0.00014999,2]
[354580264,1740580034669,-500.0,0.00014999,2]
[354580265,1740580034698,-500.0,0.00014999,2]
[354580266,1740580034726,-500.0,0.00014999,2]
[354580267,1740580034752,-500.0,0.00014999,2]
[354580268,1740580034778,-500.0,0.00014999,2]
[354580269,1740580034803,-500.0,0.00014999,2]
[354580270,1740580034830,-500.0,0.00014999,2]
[354580271,1740580034856,-253.10977702,0.00014999,2]
[354580272,1740580034885,-500.0,0.00014999,2]
[354580273,1740580034910,-200.0,0.00014999,2]
[354580274,1740580034938,-500.0,0.00014999,2]
[354580275,1740580034965,-2119077.13792144,0.00015,2]
[354580297,1740580094011,305.61901993,9.9e-05,2]
[354580307,1740580121891,5004.6644923,0.00015,15]
[354580322,1740580231824,-1916.02726193,0.000149,2]
[354580324,1740580231834,-73.36103549,0.000149,2]
[354580326,1740580231845,-111.58427107,0.000149,2]
[354580328,1740580231855,-662.75754358,0.000149,2]
[354580331,1740580231877,-7924.0053856,0.000149,2]
[354580333,1740580231889,-1469.57473638,0.000149,2]
[354580335,1740580231899,-617.72873584,0.000149,2]
[354580337,1740580231908,-325.29879104,0.000149,2]
[354580339,1740580231918,-250.0,0.00014936,2]
[354580341,1740580231927,-150.0,0.00014972,2]
[354580342,1740580231938,-77.80385362,0.00014973,2]
[354580343,1740580231950,-132.10028957,0.00014973,2]
[354580344,1740580231960,-363.09264307,0.00014973,2]
[354580345,1740580231969,-501.68785303,0.00014973,2]
[354580346,1740580231979,-500.0,0.00014973,2]
[354580347,1740580231989,-1522.84279723,0.00014973,2]
[354580348,1740580232001,-1565.51600315,0.00014973,2]
[354580349,1740580232041,-1080.0,0.00014973,2]
[354580350,1740580232052,-45.54793434,0.00014973,2]
[354580351,1740580232062,-250.0,0.00014975,2]
[354580352,1740580232071,-11695.05042888,0.0001499,3]
[354580353,1740580232102,-76739.69548712,0.0001499,3]
[354580354,1740580232113,-277.33,0.0001499,2]
[354580355,1740580232123,-965.04,0.0001499,2]
[354580356,1740580232133,-965.04,0.0001499,2]
[354580357,1740580232142,-155.85666796,0.0001499,2]
[354580358,1740580232151,-93606.60144491,0.00015,2]
[354580359,1740580232162,-2113.28286315,0.00015,2]
[354580360,1740580232174,-4863.36998311,0.00015,2]
[354580361,1740580232186,-5196.42540613,0.00015,2]
[354580454,1740580237745,-197.42863502,0.000149,2]
[354580455,1740580237755,-6598.40440253,0.00015,2]
[354580456,1740580237799,-494.01,0.00015,2]
[354580457,1740580237813,-796.08075109,0.00015,2]
[354580458,1740580237824,-261.5,0.00015,2]
[354580459,1740580237836,-432.055,0.00015,2]
[354580460,1740580237853,-17230.4,0.00015,2]
[354580461,1740580237865,-770.76998,0.00015,2]
[354580462,1740580237880,-5521.0,0.00015,2]
[354580463,1740580238026,-1107.72,0.00015,2]
[354580464,1740580238039,-3014909.7795189,0.00015,2]
[354580465,1740580238051,-3304.95254994,0.00015,2]
[354580466,1740580238063,-4310.0,0.00015,2]
[354580467,1740580238250,-4325.8,0.00015,2]
[354580498,1740580240228,-2592.57240001,0.00015,2]
[354580499,1740580240302,-2365.59900175,0.00015,2]
[354580500,1740580240328,-474.56821498,0.00015,2]
[354580501,1740580240342,-302.2027,0.00015,2]
[354580502,1740580240368,-1336.78335151,0.00015,2]
[354580505,1740580240483,-4350.24882442,0.00015,2]
[354580506,1740580240517,-406.7024585,0.00015,2]
[354580507,1740580240685,-866.37,0.00015,2]
[354580560,1740580242860,-5567.98071207,0.00015,2]
[354580565,1740580242873,-510.625,0.00015,2]
[354580569,1740580242893,-11400.78355502,0.00015,2]
[354580573,1740580242920,-1739.7237759,0.00015,2]
[354580581,1740580242991,-1516.95935902,0.00015,2]
[354580583,1740580243004,-2401.11632993,0.00015,2]